bitfinex/quotes_ETHUSD_20250625
["timestamp","ask_amount","ask_price","bid_price","bid_amount"]
[1750828782690,17.5159,2432.9,2432.5,4.11092237]
[1750828783962,17.5159,2432.9,2432.4,4.11103861]
[1750828784163,23.44530475,2432.9,2432.2,4.11142249]
[1750828785281,10.82557569,2432.8,2432.2,4.11142249]
[1750828785853,4.11072138,2432.7,2432.2,4.11142249]
[1750828786070,7.517,2432.6,2432.2,4.11142249]
[1750828787482,4.11114597,2432.5,2432.0,0.7971]
[1750828787694,4.11114597,2432.5,2431.9,5.85489796]
[1750828787866,0.8205,2432.4,2431.9,5.85489796]
[1750828788061,6.715,2432.3,2431.9,5.85489796]
[1750828788694,6.715,2432.3,2432.0,4.11183523]
[1750828790004,6.715,2432.3,2432.1,4.11164383]
[1750828791998,0.7771,2432.6,2432.2,4.11140044]
[1750828792179,6.715,2432.4,2432.2,4.11140044]
[1750828792490,6.715,2432.4,2432.3,4.11133495]
[1750828792675,6.715,2432.6,2432.3,4.11133495]
[1750828792877,10.0,2432.6,2432.3,4.11133495]
[1750828793276,16.715,2432.7,2432.3,4.11133495]
[1750828793480,6.715,2432.6,2432.3,4.11133495]
[1750828793683,0.7771,2432.8,2432.4,0.7661]
[1750828793876,10.0,2432.9,2432.4,0.7661]
[1750828794088,6.715,2432.7,2432.4,4.8771844]
[1750828794679,10.0,2432.7,2432.4,4.8771844]
[1750828795081,16.715,2432.8,2432.4,0.7661]
[1750828795405,16.715,2432.8,2432.3,4.11126768]
[1750828795567,16.715,2432.8,2432.2,4.86664595]
[1750828795568,16.715,2432.8,2432.4,4.11116371]
[1750828796002,10.0,2432.8,2432.4,4.11116371]
[1750828796202,10.0,2432.8,2432.0,0.99668145]
[1750828796203,16.715,2432.8,2432.0,0.99668145]
[1750828796411,4.92027986,2432.7,2432.0,4.1118421]
[1750828796711,4.92027986,2432.7,2432.2,4.11141499]
[1750828797301,6.715,2432.7,2432.3,4.1112526]
[1750828797577,10.0,2432.6,2432.3,4.1112526]
[1750828798376,10.0,2432.6,2432.2,4.11143179]
[1750828801220,10.0,2432.6,2432.3,4.11130823]
[1750828801405,0.7716,2432.9,2432.4,4.11116018]
[1750828801716,10.0,2432.7,2432.5,4.11098902]
[1750828801930,0.7716,2432.9,2432.5,4.11098902]
[1750828802205,4.11015464,2433.0,2432.5,4.11098902]
[1750828802411,10.0,2432.7,2432.5,4.11098902]
[1750828802786,10.0,2432.7,2432.4,4.92639343]
[1750828803506,10.0,2432.7,2432.4,4.11109343]
[1750828808311,10.0,2432.7,2432.3,5.01424733]
[1750828809019,6.714,2432.7,2432.3,5.01424733]
[1750828809699,6.714,2432.7,2432.4,4.11116472]
[1750828810113,10.0,2432.8,2432.4,4.11116472]
[1750828810415,6.714,2432.7,2432.4,4.11116472]
[1750828811622,10.0,2432.8,2432.4,4.11116472]
[1750828811824,6.714,2432.7,2432.4,4.11116472]
[1750828813450,10.0,2432.8,2432.4,4.11116472]
[1750828813606,6.714,2432.7,2432.4,4.11116472]
[1750828813795,16.714,2432.8,2432.4,4.11116472]
[1750828813995,10.0,2432.8,2432.4,4.11116472]
[1750828814195,16.714,2432.8,2432.4,4.11116472]
[1750828818514,6.713,2432.7,2432.5,0.8252]
[1750828820553,0.8184,2432.7,2432.0,0.8152]
[1750828820712,6.713,2432.7,2432.5,0.7919]
[1750828821049,14.94146654,2433.0,2432.5,0.7919]
[1750828821250,10.0,2432.7,2432.5,4.90287888]
[1750828822151,0.8312,2433.0,2432.5,4.90287888]
[1750828822449,10.0,2432.7,2432.5,4.90287888]
[1750828822661,10.0,2432.7,2432.5,0.7919]
[1750828822958,10.0,2432.7,2432.2,4.91499232]
[1750828822959,11.6713,2432.7,2432.2,4.91499232]
[1750828823146,10.0,2432.7,2432.2,4.91499232]
[1750828823514,10.0,2432.7,2432.3,4.11131583]
[1750828825348,10.7665,2432.7,2432.3,4.11131583]
[1750828827267,14.87717456,2432.7,2432.2,4.11142052]
[1750828827566,17.44722637,2432.7,2432.2,4.11142052]
[1750828827769,13.33655181,2432.7,2432.2,4.11142052]
[1750828830240,13.33655181,2432.7,2432.3,4.1113158]
[1750828830870,13.33655181,2432.7,2432.2,4.11141871]
[1750828831173,10.7665,2432.7,2432.2,4.11141871]
[1750828831359,10.7665,2432.7,2432.3,4.11131222]
[1750828831550,10.7665,2432.7,2432.2,4.11141457]
[1750828831739,14.87718091,2432.7,2432.2,4.11141457]
[1750828831939,10.7665,2432.7,2432.3,4.1113037]
[1750828833373,10.7665,2432.7,2432.2,4.11142186]
[1750828833678,10.7665,2432.7,2432.3,4.11133061]
[1750828837272,10.7665,2432.7,2432.2,4.11141593]
[1750828837478,10.7665,2432.7,2432.3,4.11131371]
[1750828840183,10.7665,2432.7,2432.1,4.11166279]
[1750828840184,10.7665,2432.7,2432.2,4.1114214]
[1750828842375,10.7665,2432.7,2432.3,4.11126365]
[1750828843517,0.7665,2432.7,2432.4,4.11114642]
[1750828843678,6.71,2432.7,2432.3,4.8756909]
[1750828843865,6.71,2432.7,2432.4,4.11106987]
[1750828845375,10.0,2432.7,2432.5,4.11088852]
[1750828846249,10.0,2432.7,2432.3,4.87568348]
[1750828846454,10.0,2432.7,2432.4,4.11111696]
[1750828847165,10.0,2432.8,2432.4,4.11111696]
[1750828847363,0.7855,2432.9,2432.4,4.11111696]
[1750828847596,6.71,2432.8,2432.4,4.11111696]
[1750828848299,0.7694,2433.3,2432.5,0.7961]
[1750828848585,0.7694,2433.3,2432.3,0.48756835]
[1750828848586,10.7694,2432.9,2432.4,0.53632518]
[1750828848786,14.87983219,2432.9,2432.3,4.1112502]
[1750828848988,14.87983219,2432.9,2432.4,4.11114762]
[1750828849194,14.87983219,2432.9,2432.3,4.11125672]
[1750828849373,4.11051739,2432.8,2432.3,4.11125672]
[1750828849693,14.87978847,2432.9,2432.3,4.11125672]
[1750828849899,16.77878314,2432.9,2432.4,4.11116278]
[1750828850568,12.66839467,2432.9,2432.5,4.1109942]
[1750828850790,10.7694,2432.9,2432.5,4.1109942]
[1750828851110,10.7694,2432.9,2432.4,4.11109681]
[1750828852904,10.7694,2432.9,2432.5,4.11096259]
[1750828855381,0.7694,2432.9,2432.6,4.11082698]
[1750828855881,21.64456263,2433.1,2432.5,0.7754]
[1750828856109,14.11035851,2432.9,2432.3,0.7611]
[1750828856278,0.79,2432.8,2432.3,4.87233342]
[1750828856807,0.79,2432.8,2432.4,4.111135]
[1750828861521,4.90052369,2432.8,2432.3,4.11125032]
[1750828861810,0.7596,2432.3,2431.9,4.111889]
[1750828862681,0.7596,2432.3,2431.6,4.94557729]
[1750828862682,14.87096518,2432.3,2431.6,4.94557729]
[1750828862989,14.87096518,2432.3,2431.8,4.11209674]
[1750828863200,10.7596,2432.3,2431.8,4.11209674]
[1750828863509,0.7793,2431.9,2431.4,4.11285679]
[1750828864410,0.7793,2431.9,2431.4,4.1128502]
[1750828864611,0.7793,2431.9,2431.6,4.11250649]
[1750828865924,0.7793,2431.9,2431.5,4.11261112]
[1750828868904,0.7793,2431.9,2431.2,0.7566]
[1750828869095,4.89139519,2431.9,2431.3,4.11288155]
[1750828869298,4.89139519,2431.9,2431.4,5.01110291]
[1750828869609,0.7793,2431.9,2431.3,4.11302056]
[1750828869811,0.7793,2431.9,2431.2,0.7566]
[1750828869812,10.0,2431.8,2431.4,4.11283995]
[1750828870226,4.89135601,2431.9,2431.2,4.86979369]
[1750828870227,0.7793,2431.9,2431.5,4.1126666]
[1750828870426,10.8141,2432.2,2431.6,4.88960563]
[1750828870630,0.8141,2432.5,2431.7,0.48896056]
[1750828870826,17.5221,2432.5,2432.0,4.11167858]
[1750828872328,10.8141,2432.5,2432.0,4.11167858]
[1750828872528,0.8141,2432.5,2432.1,4.11162617]
[1750828872735,0.8311,2432.7,2432.4,4.11114439]
[1750828872937,10.8311,2432.7,2432.4,4.11114439]
[1750828873243,0.7759,2432.9,2432.5,4.11099084]
[1750828873420,0.7759,2432.9,2432.4,4.11116592]
[1750828873602,0.7759,2432.9,2432.5,0.48791659]
[1750828873797,0.7759,2432.9,2432.5,4.11099691]
[1750828873998,0.7759,2432.9,2432.6,4.11078276]
[1750828875446,10.0,2433.0,2432.6,4.11078276]
[1750828876345,0.8197,2433.1,2432.6,4.11078276]
[1750828876514,10.0,2433.0,2432.6,4.11078276]
[1750828876836,7.5267,2433.1,2432.3,0.768]
[1750828876837,0.8197,2433.1,2432.7,4.11063971]
[1750828877933,0.8197,2433.1,2432.6,4.11074748]
[1750828884148,10.0,2433.0,2432.6,4.11074748]
[1750828884949,10.0,2433.0,2432.5,0.48791105]
[1750828884950,10.0,2433.0,2432.5,4.59882234]
[1750828890356,10.0,2433.0,2432.6,4.11080499]
[1750828891562,4.10953787,2433.4,2432.7,4.91645753]
[1750828891758,10.0,2433.3,2432.7,4.91645753]
[1750828891947,4.10971106,2433.3,2432.7,4.91645753]
[1750828892131,10.0,2433.3,2432.8,4.1104898]
[1750828892327,10.0,2433.4,2432.9,4.1102373]
[1750828892530,12.15787806,2433.4,2433.0,4.11013611]
[1750828893274,10.0,2433.4,2433.0,4.11013611]
[1750828893436,0.7666,2433.5,2433.0,4.11013611]
[1750828893967,0.7666,2433.5,2433.1,4.1099739]
[1750828894169,14.10922532,2433.6,2433.1,4.9239739]
[1750828894373,6.56569799,2433.9,2433.1,4.9239739]
[1750828894374,0.8223,2433.9,2433.6,4.10913872]
[1750828894587,4.10812587,2434.2,2433.6,4.1091224]
[1750828894876,4.93031405,2434.3,2433.6,4.1091224]
[1750828894877,10.0,2434.1,2433.6,4.1091224]
[1750828895456,4.93031405,2434.3,2433.6,4.1091224]
[1750828895457,14.10812587,2434.2,2433.6,4.1091224]
[1750828895754,16.85596986,2434.2,2433.6,4.1091224]
[1750828895957,23.55896986,2434.2,2433.6,4.1091224]
[1750828896159,20.81112587,2434.2,2433.6,4.1091224]
[1750828896878,4.10830358,2434.1,2433.6,4.1091224]
[1750828897081,4.10830358,2434.1,2433.5,4.89243551]
[1750828899482,4.10821697,2434.2,2433.6,4.10904027]
[1750828899776,10.81021697,2434.2,2433.5,4.8924997]
[1750828899990,10.81021697,2434.2,2433.7,4.1089695]
[1750828900594,4.10821697,2434.2,2433.7,4.1089695]
[1750828900758,0.8223,2434.3,2433.6,0.48924997]
[1750828901092,0.8223,2434.3,2433.8,4.10871555]
[1750828901771,0.8223,2434.3,2433.9,0.7992]
[1750828902088,2.4996,2434.6,2433.9,0.7992]
[1750828902288,6.701,2434.5,2434.0,4.1083009]
[1750828902661,4.87112871,2434.6,2434.0,4.1083009]
[1750828902880,10.0,2434.5,2434.0,4.1083009]
[1750828903861,4.10763206,2434.5,2434.0,5.00990954]
[1750828904184,4.10781693,2434.4,2433.9,4.90775453]
[1750828905482,4.10781693,2434.4,2433.9,0.7992]
[1750828905678,0.7977,2434.5,2433.6,4.94064483]
[1750828905883,4.10822798,2434.2,2433.6,4.94064483]
[1750828906284,0.7654,2434.1,2433.6,4.94064483]
[1750828908097,0.7654,2434.1,2433.7,4.10895777]
[1750828910202,0.7654,2434.1,2433.6,0.8316]
[1750828910371,4.10873224,2433.9,2433.4,0.7521]
[1750828910890,10.0,2433.8,2433.4,0.7521]
[1750828911102,10.0,2433.8,2433.4,4.86155005]
[1750828911768,10.0,2433.9,2433.4,4.86155005]
[1750828913197,10.0,2433.9,2433.5,4.10927713]
[1750828915394,14.10820109,2434.2,2433.6,4.10913389]
[1750828916507,4.10830163,2434.1,2433.6,4.10913389]
[1750828918507,4.10830163,2434.1,2433.5,4.10922259]
[1750828921793,14.10813844,2434.2,2433.1,6.74736924]
[1750828921794,10.0,2434.2,2433.2,4.10980041]
[1750828922103,10.0,2434.2,2433.8,0.7645]
[1750828922606,4.10789703,2434.4,2433.8,0.7645]
[1750828922780,10.0,2434.3,2433.8,0.7645]
[1750828922981,10.0,2434.3,2433.8,4.87322312]
[1750828923182,4.10796503,2434.3,2433.8,4.87322312]
[1750828924188,0.7824,2434.5,2433.8,0.7645]
[1750828924372,14.1076212,2434.5,2434.1,0.7549]
[1750828924577,6.00693193,2434.5,2434.1,0.7549]
[1750828924800,1.89931073,2434.5,2433.8,4.91665309]
[1750828925018,4.10823475,2434.2,2433.8,0.8079]
[1750828925213,14.10803925,2434.3,2433.8,0.8079]
[1750828925628,14.10803925,2434.3,2433.8,4.91668213]
[1750828925830,4.10771145,2434.5,2434.0,0.8066]
[1750828926152,10.0,2434.4,2434.0,0.8066]
[1750828926931,10.0,2434.4,2434.0,4.91503669]
[1750828927528,14.10778956,2434.4,2434.0,0.8066]
[1750828927719,4.10778956,2434.4,2434.0,0.8066]
[1750828932223,4.1076978,2434.5,2434.0,0.8066]
[1750828934261,4.10780872,2434.4,2434.0,0.8066]
[1750828937658,4.10823892,2434.2,2434.0,0.8066]
[1750828938859,14.10803385,2434.3,2434.0,0.8066]
[1750828942333,10.0,2434.3,2434.0,0.8066]
[1750828942531,20.80170444,2434.5,2434.0,4.91501389]
[1750828942961,10.0,2434.4,2434.0,4.91501389]
[1750828943838,10.0,2434.4,2434.0,0.8066]
[1750828946201,14.10779976,2434.4,2434.0,0.8066]
[1750828946368,4.10797521,2434.3,2434.0,0.8066]
[1750828946796,15.92938506,2434.4,2434.0,0.8066]
[1750828948507,11.82152703,2434.4,2434.0,0.8066]
[1750828948716,10.0,2434.4,2434.0,0.8066]
[1750828949413,14.10781675,2434.4,2434.0,0.8066]
[1750828950208,10.0,2434.4,2434.0,0.8066]
[1750828950429,17.36703652,2434.7,2433.7,4.10890067]
[1750828950708,17.36703652,2434.7,2433.2,4.65968832]
[1750828950709,0.8195,2434.3,2433.6,2.5225]
[1750828951015,4.10841327,2434.1,2433.6,0.7915]
[1750828952312,4.10848014,2434.0,2433.6,0.7915]
[1750828952611,4.10848014,2434.0,2433.3,4.10958662]
[1750828952612,4.1089586,2433.8,2433.4,0.8159]
[1750828952800,4.1089586,2433.8,2433.3,1.731]
[1750828952801,10.0,2433.7,2433.0,0.8159]
[1750828952982,10.7626,2433.5,2433.0,0.8159]
[1750828953180,4.10957159,2433.4,2433.0,0.8159]
[1750828953612,4.1096554,2433.3,2433.0,0.8159]
[1750828954107,4.10955323,2433.4,2433.0,0.8159]
[1750828954518,16.692,2433.5,2433.0,4.92596068]
[1750828954887,16.693,2433.5,2433.0,6.0026859]
[1750828955321,4.10964533,2433.3,2432.7,0.7685]
[1750828955628,7.34419799,2433.0,2432.2,0.7685]
[1750828955919,22.05099929,2432.9,2432.2,0.7685]
[1750828956116,4.11112814,2432.5,2432.2,0.7685]
[1750828957416,4.11112814,2432.5,2431.9,4.88043509]
[1750828957417,4.93182814,2432.5,2431.9,4.88043509]
[1750828957629,4.93182814,2432.5,2431.7,4.11231365]
[1750828957630,0.8207,2432.0,2431.1,6.61382648]
[1750828957798,10.0,2431.8,2431.1,3.19442859]
[1750828957997,4.11234938,2431.7,2431.1,6.61376668]
[1750828958686,14.11221802,2431.8,2431.2,4.11318626]
[1750828960516,14.11221802,2431.8,2431.0,4.43897722]
[1750828960517,2.5507,2431.7,2431.0,0.32545942]
[1750828960818,1.25507,2431.6,2431.0,0.32545942]
[1750828960991,14.11336432,2431.1,2431.0,0.32545942]
[1750828961508,10.0,2431.1,2431.0,0.32545942]
[1750828964125,14.11336432,2431.1,2431.0,0.32545942]
[1750828964332,10.0,2431.1,2431.0,0.32545942]
[1750828966523,10.0,2431.1,2431.0,1.14625942]
[1750828966822,10.0,2431.1,2431.0,0.32545942]
[1750828968927,10.8246,2431.1,2431.0,0.32545942]
[1750828971028,10.0,2431.1,2431.0,0.32545942]
[1750828976125,23.67129264,2431.1,2431.0,0.32545942]
[1750828977012,16.713,2431.1,2431.0,0.32545942]
[1750828977518,20.82636432,2431.1,2431.0,0.32545942]
[1750828978754,14.11336432,2431.1,2431.0,0.32545942]
[1750828987859,10.0,2431.1,2431.0,0.32545942]
[1750828988557,16.724,2431.1,2431.0,0.32545942]
[1750828989029,16.727,2431.1,2431.0,0.32545942]
[1750828990932,10.0,2431.1,2431.0,0.32545942]
[1750828993051,18.80880545,2431.1,2431.0,0.32545942]
[1750828994225,16.725,2431.1,2431.0,0.32545942]
[1750828995346,10.0,2431.1,2431.0,0.32545942]
[1750828995530,10.0,2431.1,2431.0,1.07765942]
[1750828998875,6.72,2431.3,2431.0,1.07765942]
[1750828999160,16.719,2431.3,2431.0,5.19116466]
[1750828999359,16.719,2431.3,2431.1,4.11334467]
[1750828999585,0.8088,2432.3,2431.3,0.7782]
[1750828999743,4.92019397,2432.3,2431.6,0.7546]
[1750828999936,4.11150398,2432.2,2431.6,0.7546]
[1750829000139,4.11158845,2432.2,2431.7,1.737]
[1750829000342,6.69076377,2432.2,2431.7,5.84934826]
[1750829000740,10.0,2432.3,2431.7,1.737]
[1750829000952,2.67003947,2432.5,2431.9,4.11201118]
[1750829000953,1.91493947,2432.5,2431.9,4.11201118]
[1750829001303,11.91493947,2432.5,2432.0,4.88331177]
[1750829001437,1.91493947,2432.5,2432.1,4.11166788]
[1750829002766,11.91493947,2432.5,2432.1,4.11166788]
[1750829006166,11.91493947,2432.5,2432.0,4.8832677]
[1750829008890,8.2226699,2432.3,2431.4,1.10788367]
[1750829009112,0.7893,2430.5,2429.4,1.235022]
[1750829009401,14.94937326,2429.5,2429.4,1.235022]
[1750829009552,24.49298857,2429.5,2429.4,1.235022]
[1750829009751,30.88773879,2429.5,2429.4,1.235022]
[1750829010106,10.0,2429.5,2429.4,1.235022]
[1750829010393,10.0,2429.5,2428.6,1.948]
[1750829010394,4.11727348,2428.8,2428.6,0.01]
[1750829010558,10.0,2429.0,2428.6,0.01]
[1750829010758,4.11731265,2428.8,2428.6,0.01]
[1750829011061,4.11742907,2428.7,2428.6,0.01]
[1750829011252,4.11663915,2429.2,2428.6,0.01]
[1750829011484,10.0,2429.0,2428.6,0.01]
[1750829012086,7.088,2429.2,2428.6,4.12758822]
[1750829012284,10.0,2429.1,2428.6,0.01]
[1750829012457,14.11690558,2429.1,2428.6,0.01]
[1750829012659,10.0,2429.1,2428.6,0.01]
[1750829013058,4.11692054,2429.0,2428.6,0.01]
[1750829013256,0.7846,2428.5,2427.6,0.2194807]
[1750829013454,4.11876857,2428.0,2427.6,0.2194807]
[1750829013755,0.41187686,2427.9,2427.6,0.2194807]
[1750829013951,4.11848586,2428.1,2427.6,0.2194807]
[1750829013952,10.0,2428.1,2427.6,0.2194807]
[1750829014154,7.188,2428.0,2427.6,0.2194807]
[1750829014356,14.11885478,2427.9,2427.6,0.2194807]
[1750829014556,10.0,2427.9,2427.6,0.2194807]
[1750829014989,3.11126358,2428.5,2427.6,0.2194807]
[1750829014990,10.0,2428.4,2427.6,0.2194807]
[1750829015185,10.0,2428.2,2427.6,4.33865747]
[1750829015388,10.0,2428.2,2427.6,0.2194807]
[1750829015762,10.0,2428.2,2427.7,4.11912509]
[1750829015963,10.0,2428.2,2427.6,0.2194807]
[1750829016187,4.1184679,2428.1,2427.6,0.2194807]
[1750829016394,11.7191,2428.2,2427.6,0.2194807]
[1750829016701,4.11897894,2427.8,2427.6,0.2194807]
[1750829016872,7.207,2427.8,2427.6,0.2194807]
[1750829017280,11.7191,2428.2,2427.6,0.2194807]
[1750829017281,10.0,2427.9,2427.6,0.2194807]
[1750829017503,0.7546,2426.9,2426.0,1.7229863]
[1750829017667,17.302,2427.1,2426.5,4.12102504]
[1750829017996,10.0,2426.9,2425.6,0.32545942]
[1750829018196,10.0,2426.4,2425.6,0.32545942]
[1750829018396,1.06326358,2427.3,2425.6,0.32545942]
[1750829018580,10.0,2426.9,2425.8,4.12235138]
[1750829018776,4.11997363,2427.2,2425.9,2.52023514]
[1750829018777,10.0,2427.1,2425.9,2.52023514]
[1750829019003,7.351,2427.0,2426.2,4.12151046]
[1750829019185,4.12082925,2426.7,2426.0,4.12200072]
[1750829019375,7.351,2426.6,2425.9,4.12214191]
[1750829019696,10.0,2426.8,2426.0,0.41221419]
[1750829019899,10.0,2426.8,2426.1,4.12171063]
[1750829020200,10.0,2426.8,2426.3,4.12144979]
[1750829020393,10.0,2426.8,2426.0,6.2299863]
[1750829020591,10.0,2426.8,2426.2,4.12165192]
[1750829020791,10.0,2426.8,2426.4,4.12121393]
[1750829020969,10.0,2426.8,2426.6,4.12088333]
[1750829021306,10.0,2427.2,2426.3,4.12150061]
[1750829021307,4.12042075,2427.0,2426.3,4.12150061]
[1750829021604,10.0,2426.8,2426.0,6.22999763]
[1750829021807,10.0,2426.4,2425.7,9.885]
[1750829022104,17.394,2426.4,2425.8,4.12224201]
[1750829022274,17.394,2426.4,2425.9,4.12215411]
[1750829022474,17.394,2426.4,2426.0,4.12186776]
[1750829022674,10.0,2427.0,2426.0,0.82440737]
[1750829022898,4.12048292,2426.9,2426.2,4.12163484]
[1750829023202,4.12048292,2426.9,2425.7,14.00746616]
[1750829023203,0.7574,2426.7,2425.7,9.885]
[1750829023367,0.7574,2426.7,2425.7,14.0073936]
[1750829023571,10.0,2426.9,2425.9,4.12211691]
[1750829023572,7.413,2426.9,2425.9,4.12211691]
[1750829023792,10.0,2427.0,2426.4,4.12122648]
[1750829023997,10.0,2427.0,2426.0,2.52021169]
[1750829024412,10.0,2427.0,2426.4,4.12123411]
[1750829024585,10.0,2427.0,2426.3,0.7867]
[1750829024586,4.12078227,2426.8,2426.3,0.7867]
[1750829024786,4.12110314,2426.6,2426.0,2.108]
[1750829024986,10.0,2426.6,2426.0,4.12195262]
[1750829025182,4.12116956,2426.5,2425.9,6.23115037]
[1750829025508,10.0,2426.6,2425.9,2.109]
[1750829025674,14.12111443,2426.6,2426.0,4.12199727]
[1750829026080,14.12111443,2426.6,2425.9,2.109]
[1750829026081,1.37801262,2426.5,2425.9,2.109]
[1750829026406,11.37801262,2426.5,2425.9,2.109]
[1750829026601,15.49923505,2426.5,2425.9,6.23117059]
[1750829026815,10.0,2426.5,2426.0,4.12201154]
[1750829027115,14.12117933,2426.5,2425.9,6.23115252]
[1750829027284,4.12150381,2426.3,2425.9,2.109]
[1750829027491,10.0,2426.5,2425.9,6.23112682]
[1750829027687,14.12128805,2426.5,2425.9,6.23112682]
[1750829028218,10.0,2426.5,2426.0,4.1219783]
[1750829028378,10.0,2426.5,2425.9,6.23117421]
[1750829028581,10.0,2426.5,2426.0,4.12201154]
[1750829028794,14.12117437,2426.5,2426.0,4.12201154]
[1750829029199,7.416,2426.5,2426.1,4.12180939]
[1750829029422,17.416,2426.5,2426.0,4.12195685]
[1750829029779,7.416,2426.5,2426.1,4.12183216]
[1750829030016,11.53589844,2426.7,2426.2,4.12165331]
[1750829030311,21.53171753,2426.8,2426.3,4.12147815]
[1750829030607,0.8208,2427.1,2426.0,4.12201154]
[1750829030913,4.94104397,2427.1,2426.5,4.12107083]
[1750829031105,10.0,2427.0,2426.5,4.12107083]
[1750829031517,14.94097145,2427.1,2426.5,4.12108376]
[1750829031920,14.94097145,2427.1,2426.6,4.12098928]
[1750829032285,14.94097145,2427.1,2426.5,4.12108786]
[1750829032485,4.12031574,2427.0,2426.4,4.12125952]
[1750829032682,13.46769651,2427.1,2426.1,1.41150115]
[1750829032887,12.64689651,2427.1,2426.6,4.12099233]
[1750829033417,16.76705615,2427.1,2426.6,4.12099233]
[1750829033720,16.76705615,2427.1,2426.4,4.12129557]
[1750829033721,4.12031911,2427.0,2426.4,4.1211852]
[1750829034221,10.0,2426.8,2426.4,4.1211852]
[1750829034612,10.0,2426.8,2426.4,4.12125972]
[1750829034916,14.12051371,2426.9,2426.4,4.12125972]
[1750829035140,14.12051371,2426.9,2426.3,4.12143252]
[1750829035417,14.12051371,2426.9,2426.4,4.12132657]
[1750829035620,14.1203841,2427.0,2426.4,4.12132657]
[1750829036419,14.1203841,2427.0,2426.3,4.12149794]
[1750829036420,14.1203841,2427.0,2426.5,4.12113195]
[1750829036724,14.1203841,2427.0,2426.4,4.12125835]
[1750829037229,14.1203841,2427.0,2426.1,5.5333185]
[1750829037230,10.0,2427.0,2426.1,5.5333185]
[1750829037403,10.0,2427.0,2426.6,4.12089305]
[1750829038027,14.12032513,2427.0,2426.5,4.12107849]
[1750829038224,10.0,2427.0,2426.5,4.12107849]
[1750829038719,4.12066834,2426.8,2426.1,7.02010579]
[1750829038889,0.41206683,2426.7,2426.1,2.8984]
[1750829039092,7.364,2426.9,2426.3,4.12139144]
[1750829039402,11.48463897,2426.9,2426.3,4.12139144]
[1750829039599,10.0,2427.0,2426.5,4.12106308]
[1750829039802,21.48033068,2427.0,2426.5,4.12106308]
[1750829040209,0.7683,2426.9,2425.7,9.885]
[1750829040620,10.0,2426.8,2426.3,4.12134307]
[1750829040919,0.7683,2426.9,2426.4,4.12119251]
[1750829041125,4.88879814,2426.9,2426.4,4.12119251]
[1750829041418,14.12039104,2427.0,2426.5,4.12115727]
[1750829041724,10.0,2427.0,2426.5,4.12100425]
[1750829042094,10.0,2427.0,2426.6,4.12096904]
[1750829042634,10.0,2427.0,2426.4,4.12133201]
[1750829042804,10.0,2427.0,2426.5,4.12108636]
[1750829042999,10.0,2427.0,2426.6,4.12087132]
[1750829043321,2.02542917,2429.2,2426.6,4.12087132]
[1750829043322,0.7668,2427.6,2427.2,4.11992892]
[1750829043626,0.7668,2427.6,2426.7,4.1207839]
[1750829043627,4.88611239,2427.6,2427.0,4.12020669]
[1750829043826,4.119558,2427.5,2426.9,4.12048131]
[1750829044120,10.0,2427.4,2427.1,4.1200498]
[1750829044314,0.7668,2427.6,2427.1,4.1200498]
[1750829044515,0.7668,2427.6,2427.2,4.11984663]
[1750829044714,7.368,2427.8,2427.3,4.11979748]
[1750829045038,0.8044,2427.9,2427.0,4.12031314]
[1750829045202,0.8044,2427.9,2426.9,4.67048292]
[1750829045521,11.48362683,2428.0,2427.3,4.91743922]
[1750829045692,1.14836268,2427.9,2427.3,4.91760218]
[1750829045890,1.14836268,2427.9,2427.5,4.11945342]
[1750829046598,1.14836268,2427.9,2427.4,4.11956868]
[1750829047315,1.14836268,2427.9,2427.5,4.11945411]
[1750829047506,1.14836268,2427.9,2427.4,4.1195588]
[1750829047691,1.14836268,2427.9,2427.5,4.1194154]
[1750829048200,1.14836268,2427.9,2427.4,4.11957576]
[1750829048712,10.0,2427.8,2427.4,4.11957576]
[1750829048928,1.14836268,2427.9,2427.4,4.11957576]
[1750829049112,5.2671851,2427.9,2427.4,4.11957576]
[1750829049424,10.0,2427.8,2427.4,4.11957576]
[1750829050160,1.14836268,2427.9,2427.4,4.11957576]
[1750829050301,1.14836268,2427.9,2427.5,4.11944717]
[1750829050629,1.14836268,2427.9,2427.3,4.91758812]
[1750829050630,1.14836268,2427.9,2427.4,4.11955153]
[1750829050831,1.14836268,2427.9,2427.4,4.11963417]
[1750829051230,14.11851733,2428.1,2427.5,4.11945217]
[1750829051412,4.11871761,2428.0,2427.4,4.11954823]
[1750829051999,1.13815393,2428.5,2427.4,1.3738]
[1750829052200,0.7549,2430.1,2428.6,0.8238]
[1750829052432,0.7549,2430.1,2428.1,9.90899048]
[1750829052433,4.11691581,2429.1,2428.7,0.383561]
[1750829052597,4.11694365,2429.0,2428.8,0.383561]
[1750829052799,10.0,2428.9,2428.5,4.11771263]
[1750829053020,0.7549,2429.1,2428.6,0.38278745]
[1750829053197,4.8716795,2429.1,2428.7,0.38278745]
[1750829053413,5.77049172,2429.1,2428.8,0.38278745]
[1750829053631,5.77049172,2429.1,2428.4,6.22889265]
[1750829053632,0.7944,2429.5,2428.9,0.38278745]
[1750829053928,0.52531159,2430.4,2428.9,0.38278745]
[1750829053929,11.48639922,2429.9,2429.1,4.11663255]
[1750829054132,10.0,2429.4,2429.2,0.76545992]
[1750829054338,4.11583675,2429.7,2429.3,0.76545992]
[1750829054339,10.0,2429.7,2429.3,0.76545992]
[1750829054502,4.11599645,2429.6,2429.4,0.76538265]
[1750829054704,5.93915518,2429.6,2429.5,0.76538447]
[1750829054916,5.93915518,2429.6,2429.5,0.76533666]
[1750829055607,4.11599645,2429.6,2429.5,0.76533666]
[1750829055832,4.11658159,2429.2,2429.1,0.38266891]
[1750829056035,10.0,2429.4,2428.4,0.38204335]
[1750829056247,14.11759861,2428.6,2428.5,0.38204335]
[1750829056733,10.0,2428.5,2428.2,0.38204335]
[1750829056938,10.0,2428.6,2428.3,0.38204335]
[1750829057141,10.0,2428.6,2428.4,0.38204335]
[1750829057444,10.0,2428.6,2428.5,0.38204335]
[1750829057651,10.0,2428.6,2428.5,0.38216698]
[1750829058012,10.0,2428.6,2428.1,6.22836517]
[1750829059252,4.93833915,2428.9,2428.3,4.11798468]
[1750829059547,10.0,2428.8,2428.3,4.11798468]